[Event "*** SCC Grand Prix: Titled Tuesday Blitz"]
[Site "Chess.com"]
[Date "2020.10.06"]
[Round "9"]
[White "tsvet2005"]
[Black "BigAl"]
[Result "1-0"]
[WhiteElo "2685"]
[BlackElo "2518"]
[TimeControl "180+1"]
[EndTime "11:47:06 PDT"]
[Termination "tsvet2005 won by checkmate"]

1. d4 {[%clk 0:02:53]} 1... Nf6 {[%clk 0:02:59.5]} 2. c4 {[%clk 0:02:51.6]} 2...
g6 {[%clk 0:02:59.3]} 3. Nc3 {[%clk 0:02:47.9]} 3... Bg7 {[%clk 0:02:59.8]} 4.
e4 {[%clk 0:02:45.4]} 4... O-O {[%clk 0:03:00.7]} 5. Be2 {[%clk 0:02:43.2]} 5...
d6 {[%clk 0:03:01.2]} 6. Be3 {[%clk 0:02:40.8]} 6... c5 {[%clk 0:03:00.1]} 7. d5
{[%clk 0:02:39.6]} 7... e6 {[%clk 0:03:00.5]} 8. Nf3 {[%clk 0:02:35.3]} 8...
exd5 {[%clk 0:02:48.7]} 9. cxd5 {[%clk 0:02:36.2]} 9... Bg4 {[%clk 0:02:47]} 10.
Nd2 {[%clk 0:02:36.4]} 10... Bxe2 {[%clk 0:02:46.6]} 11. Qxe2 {[%clk 0:02:37]}
11... a6 {[%clk 0:02:46.2]} 12. a4 {[%clk 0:02:34.8]} 12... Re8 {[%clk
0:02:46.8]} 13. f3 {[%clk 0:02:31.1]} 13... Nbd7 {[%clk 0:02:46.4]} 14. O-O
{[%clk 0:02:30.6]} 14... Ne5 {[%clk 0:02:37.4]} 15. h3 {[%clk 0:02:25.8]} 15...
Nh5 {[%clk 0:02:36.8]} 16. Kh2 {[%clk 0:02:09.8]} 16... Qh4 {[%clk 0:02:19.7]}
17. Bf2 {[%clk 0:01:39.6]} 17... Qf4+ {[%clk 0:02:09.3]} 18. Kg1 {[%clk
0:01:33.4]} 18... Ng3 {[%clk 0:02:05.9]} 19. Bxg3 {[%clk 0:01:29.3]} 19... Qxg3
{[%clk 0:02:06.2]} 20. Rab1 {[%clk 0:01:25.2]} 20... Bh6 {[%clk 0:01:48.5]} 21.
Rfd1 {[%clk 0:01:15]} 21... c4 {[%clk 0:01:39.8]} 22. Nf1 {[%clk 0:01:02]} 22...
Qg5 {[%clk 0:01:33.2]} 23. Qf2 {[%clk 0:00:51.4]} 23... Rac8 {[%clk 0:01:11.5]}
24. b3 {[%clk 0:00:47.8]} 24... Qf6 {[%clk 0:01:03.5]} 25. bxc4 {[%clk
0:00:41.3]} 25... Rxc4 {[%clk 0:01:03.2]} 26. Ne2 {[%clk 0:00:41.2]} 26... Rxa4
{[%clk 0:00:51.8]} 27. Rxb7 {[%clk 0:00:40.1]} 27... Ra2 {[%clk 0:00:52]} 28. f4
{[%clk 0:00:32.2]} 28... Nc4 {[%clk 0:00:48.1]} 29. Nfg3 {[%clk 0:00:21.7]}
29... Bg7 {[%clk 0:00:40.9]} 30. Rc7 {[%clk 0:00:20.3]} 30... Na3 {[%clk
0:00:34.2]} 31. Rc6 {[%clk 0:00:20]} 31... Nb5 {[%clk 0:00:33.2]} 32. e5 {[%clk
0:00:20]} 32... Qd8 {[%clk 0:00:33.4]} 33. e6 {[%clk 0:00:08.1]} 33... fxe6
{[%clk 0:00:28.3]} 34. dxe6 {[%clk 0:00:09]} 34... Rxe6 {[%clk 0:00:28.6]} 35.
Rdc1 {[%clk 0:00:09.2]} 35... Re8 {[%clk 0:00:22]} 36. Qf3 {[%clk 0:00:07.5]}
36... Qf6 {[%clk 0:00:17.6]} 37. Kh1 {[%clk 0:00:07.1]} 37... Qf7 {[%clk
0:00:17]} 38. Rb6 {[%clk 0:00:06.1]} 38... Rf8 {[%clk 0:00:14]} 39. Rb7 {[%clk
0:00:06.3]} 39... Qe6 {[%clk 0:00:12.5]} 40. f5 {[%clk 0:00:05.4]} 40... gxf5
{[%clk 0:00:12.3]} 41. Nf4 {[%clk 0:00:05.8]} 41... Qf6 {[%clk 0:00:08.2]} 42.
Qd5+ {[%clk 0:00:05.6]} 42... Kh8 {[%clk 0:00:08.5]} 43. Qxa2 {[%clk 0:00:05.7]}
43... Qg5 {[%clk 0:00:08.1]} 44. Ngh5 {[%clk 0:00:04.4]} 44... Be5 {[%clk
0:00:07]} 45. Qf2 {[%clk 0:00:04.6]} 45... Nd4 {[%clk 0:00:06.5]} 46. h4 {[%clk
0:00:04.1]} 46... Qg4 {[%clk 0:00:06.5]} 47. Rcc7 {[%clk 0:00:03.9]} 47... h6
{[%clk 0:00:04.1]} 48. Rh7+ {[%clk 0:00:03.6]} 48... Kg8 {[%clk 0:00:04.6]} 49.
Rbg7+ {[%clk 0:00:04.4]} 49... Bxg7 {[%clk 0:00:04.2]} 50. Rxg7+ {[%clk
0:00:05.3]} 50... Kh8 {[%clk 0:00:05.1]} 51. Rxg4 {[%clk 0:00:05.1]} 51... fxg4
{[%clk 0:00:05.7]} 52. Qxd4+ {[%clk 0:00:05.7]} 52... Kh7 {[%clk 0:00:05.5]} 53.
Qg7# {[%clk 0:00:06.6]} 1-0

[Event "*** SCC Grand Prix: Titled Tuesday Blitz"]
[Site "Chess.com"]
[Date "2020.10.06"]
[Round "9"]
[White "norwaytoadog"]
[Black "PhileKhoob"]
[Result "0-1"]
[WhiteElo "2307"]
[BlackElo "2479"]
[TimeControl "180+1"]
[EndTime "11:47:06 PDT"]
[Termination "PhileKhoob won on time"]

1. e4 {[%clk 0:02:58.9]} 1... c5 {[%clk 0:02:58.3]} 2. Nf3 {[%clk 0:02:58.9]}
2... d6 {[%clk 0:02:58.4]} 3. Bb5+ {[%clk 0:02:58.7]} 3... Bd7 {[%clk 0:02:58]}
4. Bxd7+ {[%clk 0:02:58.9]} 4... Qxd7 {[%clk 0:02:58.9]} 5. O-O {[%clk
0:02:58.8]} 5... Nf6 {[%clk 0:02:59.5]} 6. Qe2 {[%clk 0:02:58.4]} 6... Nc6
{[%clk 0:02:59.7]} 7. c3 {[%clk 0:02:57.7]} 7... e6 {[%clk 0:03:00.1]} 8. d4
{[%clk 0:02:56.9]} 8... cxd4 {[%clk 0:03:00.5]} 9. cxd4 {[%clk 0:02:57]} 9... d5
{[%clk 0:03:01.4]} 10. e5 {[%clk 0:02:56.9]} 10... Ne4 {[%clk 0:03:01.8]} 11.
Be3 {[%clk 0:02:56]} 11... Be7 {[%clk 0:03:01.3]} 12. Ne1 {[%clk 0:02:53.2]}
12... f6 {[%clk 0:02:56.4]} 13. f3 {[%clk 0:02:51.2]} 13... Ng5 {[%clk
0:02:56.6]} 14. f4 {[%clk 0:02:40.7]} 14... Ne4 {[%clk 0:02:56.8]} 15. Nf3
{[%clk 0:02:31.6]} 15... f5 {[%clk 0:02:53.6]} 16. Nbd2 {[%clk 0:02:27.3]} 16...
O-O {[%clk 0:02:53.7]} 17. a3 {[%clk 0:02:25.9]} 17... Rac8 {[%clk 0:02:53.1]}
18. Rfc1 {[%clk 0:02:21.4]} 18... a6 {[%clk 0:02:48.6]} 19. b4 {[%clk 0:02:21]}
19... Na7 {[%clk 0:02:45.4]} 20. Qd3 {[%clk 0:02:16.3]} 20... Nb5 {[%clk
0:02:42.4]} 21. Nb3 {[%clk 0:02:14.3]} 21... Rxc1+ {[%clk 0:02:36.3]} 22. Rxc1
{[%clk 0:02:10.6]} 22... Nxa3 {[%clk 0:02:30.4]} 23. Nc5 {[%clk 0:02:00.2]}
23... Bxc5 {[%clk 0:02:27.1]} 24. bxc5 {[%clk 0:01:57.1]} 24... Nc4 {[%clk
0:02:24.1]} 25. Rb1 {[%clk 0:01:49.8]} 25... Qc6 {[%clk 0:02:23]} 26. Qb3 {[%clk
0:01:41.9]} 26... Rb8 {[%clk 0:02:23.3]} 27. Bc1 {[%clk 0:01:32.7]} 27... b5
{[%clk 0:02:19.4]} 28. h3 {[%clk 0:01:03]} 28... a5 {[%clk 0:02:17.3]} 29. g4
{[%clk 0:01:02.4]} 29... g6 {[%clk 0:02:14.8]} 30. gxf5 {[%clk 0:01:00.9]} 30...
gxf5 {[%clk 0:02:15.7]} 31. Kh2 {[%clk 0:00:59.5]} 31... Kh8 {[%clk 0:02:14]}
32. Qd3 {[%clk 0:00:44.3]} 32... b4 {[%clk 0:02:10.8]} 33. Be3 {[%clk
0:00:42.1]} 33... a4 {[%clk 0:02:08.2]} 34. Rg1 {[%clk 0:00:41.8]} 34... b3
{[%clk 0:02:05.3]} 35. Qf1 {[%clk 0:00:39.5]} 35... Nxe3 {[%clk 0:02:03.9]} 36.
Qe1 {[%clk 0:00:38.9]} 36... b2 {[%clk 0:01:15.1]} 37. Qh4 {[%clk 0:00:30.1]}
37... b1=Q {[%clk 0:01:14.2]} 38. Rxb1 {[%clk 0:00:29.7]} 38... Rxb1 {[%clk
0:01:15.1]} 39. Qd8+ {[%clk 0:00:29.2]} 39... Kg7 {[%clk 0:01:15.4]} 40. Qe7+
{[%clk 0:00:29]} 40... Kg8 {[%clk 0:01:15.4]} 41. Ng5 {[%clk 0:00:13.4]} 41...
Rb7 {[%clk 0:00:47.8]} 42. Qd8+ {[%clk 0:00:10.5]} 42... Kg7 {[%clk 0:00:48]}
43. Nxe4 {[%clk 0:00:08.7]} 43... dxe4 {[%clk 0:00:34.1]} 44. Qf6+ {[%clk
0:00:08.2]} 44... Kg8 {[%clk 0:00:34.5]} 45. Qd8+ {[%clk 0:00:07.6]} 45... Kf7
{[%clk 0:00:34.7]} 46. Qf6+ {[%clk 0:00:07.7]} 46... Ke8 {[%clk 0:00:34.8]} 47.
Qh8+ {[%clk 0:00:07.7]} 47... Kd7 {[%clk 0:00:34.3]} 48. Qg7+ {[%clk 0:00:06.8]}
48... Kd8 {[%clk 0:00:34.3]} 49. Qf8+ {[%clk 0:00:06.4]} 49... Kc7 {[%clk
0:00:31.1]} 50. Qe7+ {[%clk 0:00:06.5]} 50... Qd7 {[%clk 0:00:31.4]} 51. Qf8
{[%clk 0:00:01.7]} 51... Rb2+ {[%clk 0:00:30.7]} 52. Kg3 {[%clk 0:00:01.1]}
52... Nf1+ {[%clk 0:00:29.8]} 0-1

[Event "*** SCC Grand Prix: Titled Tuesday Blitz"]
[Site "Chess.com"]
[Date "2020.10.06"]
[Round "9"]
[White "Iskusnyh"]
[Black "Alindsay211"]
[Result "1/2-1/2"]
[WhiteElo "2564"]
[BlackElo "2421"]
[TimeControl "180+1"]
[EndTime "11:47:08 PDT"]
[Termination "Game drawn by repetition"]

1. d4 {[%clk 0:03:00.9]} 1... Nf6 {[%clk 0:02:59.2]} 2. c4 {[%clk 0:03:00.8]}
2... g6 {[%clk 0:02:59]} 3. g3 {[%clk 0:03:00.8]} 3... Bg7 {[%clk 0:02:55]} 4.
Bg2 {[%clk 0:03:01.2]} 4... O-O {[%clk 0:02:51.9]} 5. Nc3 {[%clk 0:03:01.1]}
5... d6 {[%clk 0:02:47.3]} 6. Nf3 {[%clk 0:03:01.5]} 6... Nc6 {[%clk 0:02:46.6]}
7. O-O {[%clk 0:03:02]} 7... a6 {[%clk 0:02:44.1]} 8. b3 {[%clk 0:02:54.7]} 8...
Rb8 {[%clk 0:02:43.8]} 9. d5 {[%clk 0:02:53.5]} 9... Na5 {[%clk 0:02:41.1]} 10.
Bg5 {[%clk 0:02:51.8]} 10... h6 {[%clk 0:02:35.6]} 11. Bd2 {[%clk 0:02:47.9]}
11... c5 {[%clk 0:02:31.4]} 12. dxc6 {[%clk 0:02:40.7]} 12... Nxc6 {[%clk
0:02:30.2]} 13. Rc1 {[%clk 0:02:37.8]} 13... Bf5 {[%clk 0:02:26.4]} 14. h3
{[%clk 0:02:31.7]} 14... Qc8 {[%clk 0:02:21.1]} 15. Kh2 {[%clk 0:02:27.8]} 15...
Re8 {[%clk 0:02:19.6]} 16. Nd5 {[%clk 0:02:25.6]} 16... Qd8 {[%clk 0:02:14]} 17.
Nxf6+ {[%clk 0:02:22.6]} 17... exf6 {[%clk 0:02:08.6]} 18. Bf4 {[%clk 0:02:20]}
18... Ne5 {[%clk 0:02:07.1]} 19. Qd2 {[%clk 0:02:17.3]} 19... g5 {[%clk
0:02:02.4]} 20. Be3 {[%clk 0:02:08.8]} 20... Qe7 {[%clk 0:01:55.2]} 21. Rfd1
{[%clk 0:02:01.4]} 21... Bf8 {[%clk 0:01:49.3]} 22. c5 {[%clk 0:01:50.9]} 22...
dxc5 {[%clk 0:01:41.1]} 23. Bxc5 {[%clk 0:01:49]} 23... Nxf3+ {[%clk 0:01:40.8]}
24. Bxf3 {[%clk 0:01:47.4]} 24... Qe5 {[%clk 0:01:36.6]} 25. Bxf8 {[%clk
0:01:43.6]} 25... Rxf8 {[%clk 0:01:35.7]} 26. Qd6 {[%clk 0:01:36.7]} 26... Rfe8
{[%clk 0:01:29.2]} 27. Rc5 {[%clk 0:01:33.6]} 27... Qxd6 {[%clk 0:01:21.9]} 28.
Rxd6 {[%clk 0:01:32.5]} 28... Re5 {[%clk 0:01:17.7]} 29. Rc7 {[%clk 0:01:21.6]}
29... Be6 {[%clk 0:01:11]} 30. Rb6 {[%clk 0:01:11]} 30... f5 {[%clk 0:01:02.3]}
31. e3 {[%clk 0:01:00]} 31... Kg7 {[%clk 0:00:57.4]} 32. Rbxb7 {[%clk
0:00:56.8]} 32... Rxb7 {[%clk 0:00:49.3]} 33. Bxb7 {[%clk 0:00:55.9]} 33... f4
{[%clk 0:00:39.9]} 34. e4 {[%clk 0:00:44.6]} 34... fxg3+ {[%clk 0:00:33.1]} 35.
Kxg3 {[%clk 0:00:43.8]} 35... Ra5 {[%clk 0:00:31.7]} 36. Rc2 {[%clk 0:00:40.3]}
36... Kf6 {[%clk 0:00:27.2]} 37. h4 {[%clk 0:00:36.5]} 37... gxh4+ {[%clk
0:00:26.5]} 38. Kxh4 {[%clk 0:00:36]} 38... Rg5 {[%clk 0:00:26.8]} 39. f3 {[%clk
0:00:27.4]} 39... Rg1 {[%clk 0:00:25.6]} 40. Bxa6 {[%clk 0:00:26.2]} 40... Ke5
{[%clk 0:00:23.8]} 41. Bc4 {[%clk 0:00:24.8]} 41... Kf4 {[%clk 0:00:21.2]} 42.
Bxe6 {[%clk 0:00:24.3]} 42... fxe6 {[%clk 0:00:19.5]} 43. Kh5 {[%clk 0:00:22.4]}
43... Rh1+ {[%clk 0:00:18.6]} 44. Kg6 {[%clk 0:00:22.1]} 44... Kxf3 {[%clk
0:00:18.2]} 45. e5 {[%clk 0:00:22.1]} 45... Ke4 {[%clk 0:00:18.1]} 46. Re2+
{[%clk 0:00:21.1]} 46... Kd5 {[%clk 0:00:17.5]} 47. Kf6 {[%clk 0:00:20]} 47...
Rf1+ {[%clk 0:00:17.3]} 48. Kg6 {[%clk 0:00:19.7]} 48... Rh1 {[%clk 0:00:15.6]}
49. a4 {[%clk 0:00:18.4]} 49... Rb1 {[%clk 0:00:15.4]} 50. Kf6 {[%clk 0:00:15]}
50... Rf1+ {[%clk 0:00:12.8]} 51. Ke7 {[%clk 0:00:14.7]} 51... Rb1 {[%clk
0:00:13.7]} 52. a5 {[%clk 0:00:13.2]} 52... Rxb3 {[%clk 0:00:13]} 53. Kf6 {[%clk
0:00:12.5]} 53... Rf3+ {[%clk 0:00:12.6]} 54. Ke7 {[%clk 0:00:12.3]} 54... Ra3
{[%clk 0:00:13.5]} 55. Kf6 {[%clk 0:00:11.7]} 55... Rf3+ {[%clk 0:00:13.6]} 56.
Ke7 {[%clk 0:00:11.6]} 56... Ra3 {[%clk 0:00:14.5]} 57. Kf6 {[%clk 0:00:10.6]}
57... Rf3+ {[%clk 0:00:14.6]} 1/2-1/2

[Event "*** SCC Grand Prix: Titled Tuesday Blitz"]
[Site "Chess.com"]
[Date "2020.10.06"]
[Round "9"]
[White "rasmussvane"]
[Black "A-Fier"]
[Result "1-0"]
[WhiteElo "2910"]
[BlackElo "2771"]
[TimeControl "180+1"]
[EndTime "11:47:15 PDT"]
[Termination "rasmussvane won by resignation"]

1. Nf3 {[%clk 0:03:00.9]} 1... Nf6 {[%clk 0:02:59.6]} 2. g3 {[%clk 0:03:00.9]}
2... g6 {[%clk 0:03:00]} 3. Bg2 {[%clk 0:03:01.1]} 3... Bg7 {[%clk 0:03:00.6]}
4. O-O {[%clk 0:03:02]} 4... O-O {[%clk 0:03:01.2]} 5. d4 {[%clk 0:03:02.4]}
5... d5 {[%clk 0:03:00.9]} 6. c4 {[%clk 0:03:02.7]} 6... dxc4 {[%clk 0:03:01]}
7. Na3 {[%clk 0:03:03.1]} 7... c3 {[%clk 0:03:00.8]} 8. bxc3 {[%clk 0:03:04]}
8... c5 {[%clk 0:03:01.1]} 9. Bb2 {[%clk 0:03:04.1]} 9... Nc6 {[%clk 0:02:59.3]}
10. Re1 {[%clk 0:03:04.4]} 10... Nd5 {[%clk 0:02:57]} 11. e4 {[%clk 0:03:03.7]}
11... Nb6 {[%clk 0:02:57.5]} 12. Rb1 {[%clk 0:03:01]} 12... Bg4 {[%clk
0:02:56.4]} 13. d5 {[%clk 0:02:58.5]} 13... Ne5 {[%clk 0:02:55.2]} 14. c4 {[%clk
0:02:58.6]} 14... Bxf3 {[%clk 0:02:31.4]} 15. Bxf3 {[%clk 0:02:59.5]} 15... Rb8
{[%clk 0:02:31.2]} 16. Be2 {[%clk 0:02:55.4]} 16... g5 {[%clk 0:02:22.2]} 17.
Qd2 {[%clk 0:02:47.4]} 17... h6 {[%clk 0:02:18]} 18. f4 {[%clk 0:02:46.7]} 18...
gxf4 {[%clk 0:02:18.1]} 19. gxf4 {[%clk 0:02:47.6]} 19... Ng6 {[%clk 0:02:18.2]}
20. e5 {[%clk 0:02:37.9]} 20... e6 {[%clk 0:02:09.9]} 21. d6 {[%clk 0:02:13.5]}
21... Qh4 {[%clk 0:02:09.5]} 22. Rf1 {[%clk 0:02:13.1]} 22... f6 {[%clk
0:02:09.7]} 23. Bd3 {[%clk 0:02:12]} 23... f5 {[%clk 0:02:06.8]} 24. Qf2 {[%clk
0:02:06.1]} 24... Qxf2+ {[%clk 0:01:57.4]} 25. Rxf2 {[%clk 0:02:07]} 25... Nd7
{[%clk 0:01:56.9]} 26. Nb5 {[%clk 0:02:04.5]} 26... Kf7 {[%clk 0:01:54.2]} 27.
Bc3 {[%clk 0:01:57.4]} 27... h5 {[%clk 0:01:53.6]} 28. Nxa7 {[%clk 0:01:38.6]}
28... Bh6 {[%clk 0:01:49.7]} 29. Bd2 {[%clk 0:01:38.7]} 29... Rg8 {[%clk
0:01:49]} 30. Kf1 {[%clk 0:01:31.1]} 30... b6 {[%clk 0:01:47.7]} 31. Nb5 {[%clk
0:01:28.7]} 31... Ra8 {[%clk 0:01:45.9]} 32. a3 {[%clk 0:01:28.6]} 32... Ra4
{[%clk 0:01:41.7]} 33. Ke2 {[%clk 0:01:13.1]} 33... Nh4 {[%clk 0:01:41.8]} 34.
Ra1 {[%clk 0:01:05]} 34... Rg4 {[%clk 0:01:41.3]} 35. Raf1 {[%clk 0:00:49.3]}
35... Ng6 {[%clk 0:01:40.8]} 36. Kd1 {[%clk 0:00:47.3]} 36... Rh4 {[%clk
0:01:34.2]} 37. Kc2 {[%clk 0:00:44.7]} 37... Rh3 {[%clk 0:01:34.6]} 38. Bc1
{[%clk 0:00:39.8]} 38... Ra8 {[%clk 0:01:20.4]} 39. Nc7 {[%clk 0:00:34]} 39...
Ra4 {[%clk 0:01:16.5]} 40. Re1 {[%clk 0:00:27.7]} 40... Nh4 {[%clk 0:01:16.8]}
41. Re3 {[%clk 0:00:23.9]} 41... Rxe3 {[%clk 0:01:03.5]} 42. Bxe3 {[%clk
0:00:24.8]} 42... Nxe5 {[%clk 0:01:04.1]} 43. fxe5 {[%clk 0:00:23.5]} 43... Bxe3
{[%clk 0:01:04.9]} 44. Re2 {[%clk 0:00:22.4]} 44... f4 {[%clk 0:01:05.2]} 45.
Kb3 {[%clk 0:00:20.7]} 45... Ra7 {[%clk 0:01:04.6]} 46. Be4 {[%clk 0:00:20.7]}
46... Bd4 {[%clk 0:01:01]} 47. Re1 {[%clk 0:00:19.5]} 47... Bxe5 {[%clk
0:00:54.3]} 48. Nb5 {[%clk 0:00:14.2]} 48... Rd7 {[%clk 0:00:53.1]} 49. Bc6
{[%clk 0:00:14.5]} 49... Rd8 {[%clk 0:00:53.4]} 50. Rxe5 {[%clk 0:00:14.5]}
50... Nf5 {[%clk 0:00:51.9]} 51. Bd5 {[%clk 0:00:11.8]} 51... Ng7 {[%clk
0:00:41.6]} 52. Bf3 {[%clk 0:00:11.4]} 52... Kf6 {[%clk 0:00:41.6]} 53. Re1
{[%clk 0:00:10]} 53... Nf5 {[%clk 0:00:41.5]} 54. Rd1 {[%clk 0:00:07.3]} 54...
h4 {[%clk 0:00:40.9]} 55. Rd2 {[%clk 0:00:06.9]} 55... Ne3 {[%clk 0:00:41]} 56.
Kc3 {[%clk 0:00:06.9]} 56... e5 {[%clk 0:00:40.2]} 57. d7 {[%clk 0:00:06.7]}
57... Kf5 {[%clk 0:00:38.3]} 58. Na7 {[%clk 0:00:06.4]} 58... e4 {[%clk
0:00:38.1]} 59. Bxe4+ {[%clk 0:00:05.9]} 59... Kxe4 {[%clk 0:00:38.2]} 60. Nc6
{[%clk 0:00:06.6]} 60... Rxd7 {[%clk 0:00:38.1]} 61. Rxd7 {[%clk 0:00:07.5]}
61... f3 {[%clk 0:00:37.9]} 62. Re7+ {[%clk 0:00:07.8]} 62... Kf4 {[%clk
0:00:38.3]} 63. Rf7+ {[%clk 0:00:07.8]} 63... Nf5 {[%clk 0:00:38.5]} 64. Ne7
{[%clk 0:00:08.1]} 64... Ke3 {[%clk 0:00:35.8]} 65. Rxf5 {[%clk 0:00:08.2]}
65... f2 {[%clk 0:00:36.4]} 66. h3 {[%clk 0:00:07.9]} 66... Ke2 {[%clk
0:00:36.6]} 67. Ng6 {[%clk 0:00:08.1]} 1-0

[Event "*** SCC Grand Prix: Titled Tuesday Blitz"]
[Site "Chess.com"]
[Date "2020.10.06"]
[Round "9"]
[White "AliKa2810"]
[Black "Larina_Marija"]
[Result "1/2-1/2"]
[WhiteElo "2567"]
[BlackElo "2254"]
[TimeControl "180+1"]
[EndTime "11:47:17 PDT"]
[Termination "Game drawn - insufficient material"]

1. d4 {[%clk 0:03:00.9]} 1... f5 {[%clk 0:03:00.2]} 2. c4 {[%clk 0:03:00.3]}
2... Nf6 {[%clk 0:03:00.3]} 3. Nc3 {[%clk 0:03:00.5]} 3... d6 {[%clk 0:02:59.9]}
4. Bg5 {[%clk 0:02:59.9]} 4... e6 {[%clk 0:02:56.5]} 5. e4 {[%clk 0:02:59.5]}
5... fxe4 {[%clk 0:02:56.6]} 6. Nxe4 {[%clk 0:02:59.7]} 6... Be7 {[%clk
0:02:56.4]} 7. Bxf6 {[%clk 0:02:59.7]} 7... Bxf6 {[%clk 0:02:56.4]} 8. Nf3
{[%clk 0:02:59.8]} 8... O-O {[%clk 0:02:52.4]} 9. Bd3 {[%clk 0:02:59.9]} 9...
Nd7 {[%clk 0:02:45.5]} 10. Qc2 {[%clk 0:02:58.1]} 10... g6 {[%clk 0:02:43.3]}
11. h4 {[%clk 0:02:57.7]} 11... d5 {[%clk 0:02:35.4]} 12. Neg5 {[%clk
0:02:49.3]} 12... Qe7 {[%clk 0:02:20.4]} 13. O-O-O {[%clk 0:02:42.1]} 13... dxc4
{[%clk 0:02:18.3]} 14. Bxc4 {[%clk 0:02:40.9]} 14... Nb6 {[%clk 0:02:18.1]} 15.
Rhe1 {[%clk 0:02:29.3]} 15... Nxc4 {[%clk 0:02:13.3]} 16. Qxc4 {[%clk
0:02:30.2]} 16... c6 {[%clk 0:02:06.8]} 17. Kb1 {[%clk 0:02:19.7]} 17... a5
{[%clk 0:01:58.9]} 18. Re3 {[%clk 0:02:14]} 18... a4 {[%clk 0:01:57.9]} 19. a3
{[%clk 0:02:11.2]} 19... Ra5 {[%clk 0:01:51.3]} 20. Rde1 {[%clk 0:02:08.1]}
20... Kh8 {[%clk 0:01:22.8]} 21. Nxe6 {[%clk 0:02:03.3]} 21... Bxe6 {[%clk
0:01:21.6]} 22. Rxe6 {[%clk 0:02:04.2]} 22... Qd7 {[%clk 0:01:16.9]} 23. Qb4
{[%clk 0:01:48.1]} 23... Raa8 {[%clk 0:01:16.5]} 24. Qc5 {[%clk 0:01:25.4]}
24... Rad8 {[%clk 0:01:12.6]} 25. R1e4 {[%clk 0:01:17.6]} 25... Qd5 {[%clk
0:01:11.3]} 26. Qxd5 {[%clk 0:01:01.2]} 26... Rxd5 {[%clk 0:01:12.2]} 27. Rf4
{[%clk 0:00:59.4]} 27... Kg7 {[%clk 0:01:08]} 28. Kc2 {[%clk 0:00:59.2]} 28...
Rf7 {[%clk 0:01:00.2]} 29. Kd3 {[%clk 0:00:52]} 29... Rb5 {[%clk 0:00:55.7]} 30.
Kc2 {[%clk 0:00:39.7]} 30... Rd5 {[%clk 0:00:54.7]} 31. g3 {[%clk 0:00:36.4]}
31... Bxd4 {[%clk 0:00:31.6]} 32. Rxd4 {[%clk 0:00:29.2]} 32... Rxf3 {[%clk
0:00:30.9]} 33. Rxd5 {[%clk 0:00:29.1]} 33... cxd5 {[%clk 0:00:30.5]} 34. Re7+
{[%clk 0:00:27.9]} 34... Kf6 {[%clk 0:00:29.7]} 35. Rxh7 {[%clk 0:00:21.5]}
35... Rxf2+ {[%clk 0:00:29.6]} 36. Kb1 {[%clk 0:00:21.2]} 36... Rf1+ {[%clk
0:00:25.9]} 37. Ka2 {[%clk 0:00:21.5]} 37... Rg1 {[%clk 0:00:25.4]} 38. Rxb7
{[%clk 0:00:21.1]} 38... Rxg3 {[%clk 0:00:25.3]} 39. Rb4 {[%clk 0:00:21.5]}
39... Ke5 {[%clk 0:00:23.8]} 40. Rxa4 {[%clk 0:00:21.8]} 40... d4 {[%clk
0:00:24.4]} 41. Ra8 {[%clk 0:00:19.4]} 41... Rh3 {[%clk 0:00:20.2]} 42. a4
{[%clk 0:00:16.8]} 42... Rxh4 {[%clk 0:00:19]} 43. a5 {[%clk 0:00:17.3]} 43...
d3 {[%clk 0:00:18.7]} 44. Re8+ {[%clk 0:00:16.7]} 44... Kd4 {[%clk 0:00:18.3]}
45. Rd8+ {[%clk 0:00:14.9]} 45... Kc5 {[%clk 0:00:17.3]} 46. Rxd3 {[%clk
0:00:14]} 46... Ra4+ {[%clk 0:00:16.4]} 47. Kb3 {[%clk 0:00:11.4]} 47... Rxa5
{[%clk 0:00:16.7]} 48. Rg3 {[%clk 0:00:12]} 48... Ra6 {[%clk 0:00:16.3]} 49.
Rg5+ {[%clk 0:00:11.9]} 49... Kd4 {[%clk 0:00:15.5]} 50. Kc2 {[%clk 0:00:11.1]}
50... Ke4 {[%clk 0:00:15.3]} 51. b4 {[%clk 0:00:10.9]} 51... Kf4 {[%clk
0:00:15.6]} 52. Rg1 {[%clk 0:00:10.2]} 52... g5 {[%clk 0:00:15.7]} 53. Kc3
{[%clk 0:00:10.5]} 53... Rb6 {[%clk 0:00:15.8]} 54. Kc4 {[%clk 0:00:10.7]} 54...
g4 {[%clk 0:00:16]} 55. Kc5 {[%clk 0:00:11.3]} 55... Rb8 {[%clk 0:00:16.3]} 56.
b5 {[%clk 0:00:11.6]} 56... Kf3 {[%clk 0:00:16.7]} 57. Kc6 {[%clk 0:00:11.7]}
57... g3 {[%clk 0:00:16.8]} 58. b6 {[%clk 0:00:11.9]} 58... Kf2 {[%clk
0:00:16.8]} 59. Rxg3 {[%clk 0:00:11.8]} 59... Kxg3 {[%clk 0:00:16.6]} 60. Kc7
{[%clk 0:00:12.4]} 60... Rxb6 {[%clk 0:00:16.6]} 61. Kxb6 {[%clk 0:00:12.6]}
1/2-1/2